[Event "Titled Tuesday Blitz June 28 Early 2022"]
[White "Liyanage, Ranindu Dilshan"]
[Black "Warmerdam, Max"]
[WhiteFideId "9915834"]
[BlackFideId "1048104"]
[WhiteElo "1858"]
[BlackElo "2537"]
[Result "0-1"]
[Round "05"]
[TimeControl "180+1"]
[Date "2022.06.28"]
[WhiteClock "0:00:03"]
[BlackClock "0:00:15"]

1. e4 {[%clk 0:03:00]}  c5 {[%clk 0:02:59]} 2. Nf3 {[%clk 0:03:00]}  d6 {[%clk 0:03:00]} 3. d4 {[%clk 0:03:01]}  cxd4 {[%clk 0:03:01]} 4. Nxd4 {[%clk 0:03:02]}  Nf6 {[%clk 0:03:01]} 5. Nc3 {[%clk 0:03:03]}  a6 {[%clk 0:03:02]} 6. Qd3 {[%clk 0:03:02]}  e6 {[%clk 0:02:48]} 7. Be2 {[%clk 0:02:57]}  Nbd7 {[%clk 0:02:46]} 8. Nb3 {[%clk 0:02:31]}  b5 {[%clk 0:02:46]} 9. O-O {[%clk 0:02:23]}  Bb7 {[%clk 0:02:45]} 10. f3 {[%clk 0:02:23]}  Be7 {[%clk 0:02:44]} 11. Bf4 {[%clk 0:02:20]}  Qc7 {[%clk 0:02:42]} 12. a4 {[%clk 0:02:14]}  b4 {[%clk 0:02:41]} 13. Na2 {[%clk 0:02:13]}  e5 {[%clk 0:02:26]} 14. Be3 {[%clk 0:02:09]}  Nc5 {[%clk 0:02:04]} 15. Nxc5 {[%clk 0:02:02]}  dxc5 {[%clk 0:02:05]} 16. Qb3 {[%clk 0:01:58]}  O-O {[%clk 0:02:03]} 17. Bc4 {[%clk 0:01:58]}  a5 {[%clk 0:01:48]} 18. Rfd1 {[%clk 0:01:56]}  Nd7 {[%clk 0:01:47]} 19. Bb5 {[%clk 0:01:36]}  Nb6 {[%clk 0:01:45]} 20. Kh1 {[%clk 0:01:20]}  Rad8 {[%clk 0:01:39]} 21. c4 {[%clk 0:01:05]}  h6 {[%clk 0:01:30]} 22. Qc2 {[%clk 0:01:02]}  Bg5 {[%clk 0:01:28]} 23. Bf2 {[%clk 0:00:58]}  Nc8 {[%clk 0:01:23]} 24. Rd5 {[%clk 0:00:45]}  Bxd5 {[%clk 0:01:10]} 25. cxd5 {[%clk 0:00:45]}  Nd6 {[%clk 0:00:57]} 26. Qxc5 {[%clk 0:00:37]}  Nxb5 {[%clk 0:00:55]} 27. axb5 {[%clk 0:00:28]}  Rc8 {[%clk 0:00:39]} 28. Qxc7 {[%clk 0:00:23]}  Rxc7 {[%clk 0:00:40]} 29. h4 {[%clk 0:00:24]}  Rc2 {[%clk 0:00:38]} 30. Kg1 {[%clk 0:00:22]}  Be7 {[%clk 0:00:21]} 31. Nc1 {[%clk 0:00:17]}  Rxb2 {[%clk 0:00:18]} 32. Nd3 {[%clk 0:00:17]}  Rd2 {[%clk 0:00:18]} 33. Nxe5 {[%clk 0:00:15]}  Bf6 {[%clk 0:00:16]} 34. f4 {[%clk 0:00:15]}  b3 {[%clk 0:00:16]} 35. Rb1 {[%clk 0:00:06]}  a4 {[%clk 0:00:16]} 36. Bc5 {[%clk 0:00:03]}  Rc8 {[%clk 0:00:15]} 0-1


[Site "https://www.chess.com"]

[Event "Titled Tuesday Blitz June 28 Early 2022"]
[White "Maiorov, Nikita"]
[Black "Preotu, Razvan"]
[WhiteFideId "13501720"]
[BlackFideId "2613280"]
[WhiteElo "2417"]
[BlackElo "2407"]
[Result "0-1"]
[Round "05"]
[TimeControl "180+1"]
[Date "2022.06.28"]
[WhiteClock "0:00:02"]
[BlackClock "0:00:06"]

1. d4 {[%clk 0:02:58]}  Nf6 {[%clk 0:02:58]} 2. c4 {[%clk 0:02:57]}  g6 {[%clk 0:02:59]} 3. Nc3 {[%clk 0:02:45]}  d5 {[%clk 0:02:58]} 4. cxd5 {[%clk 0:02:45]}  Nxd5 {[%clk 0:02:59]} 5. e4 {[%clk 0:02:45]}  Nxc3 {[%clk 0:02:59]} 6. bxc3 {[%clk 0:02:45]}  Bg7 {[%clk 0:03:00]} 7. Bc4 {[%clk 0:02:45]}  c5 {[%clk 0:03:00]} 8. Ne2 {[%clk 0:02:45]}  Nc6 {[%clk 0:03:01]} 9. Be3 {[%clk 0:02:44]}  O-O {[%clk 0:03:01]} 10. O-O {[%clk 0:02:44]}  b6 {[%clk 0:03:01]} 11. Rc1 {[%clk 0:02:41]}  Bb7 {[%clk 0:03:01]} 12. Bb5 {[%clk 0:02:41]}  Rc8 {[%clk 0:02:52]} 13. Qd2 {[%clk 0:02:28]}  e6 {[%clk 0:02:46]} 14. Rfd1 {[%clk 0:02:24]}  cxd4 {[%clk 0:02:38]} 15. cxd4 {[%clk 0:02:24]}  a6 {[%clk 0:02:26]} 16. Ba4 {[%clk 0:01:43]}  b5 {[%clk 0:02:24]} 17. Bb3 {[%clk 0:01:42]}  Qa5 {[%clk 0:02:03]} 18. Qb2 {[%clk 0:01:30]}  Rfd8 {[%clk 0:01:21]} 19. h4 {[%clk 0:01:29]}  h6 {[%clk 0:01:04]} 20. Qb1 {[%clk 0:01:09]}  Qa3 {[%clk 0:01:00]} 21. h5 {[%clk 0:00:37]}  g5 {[%clk 0:00:55]} 22. d5 {[%clk 0:00:35]}  exd5 {[%clk 0:00:54]} 23. exd5 {[%clk 0:00:34]}  Na5 {[%clk 0:00:52]} 24. Rxc8 {[%clk 0:00:33]}  Rxc8 {[%clk 0:00:33]} 25. d6 {[%clk 0:00:29]}  Nxb3 {[%clk 0:00:31]} 26. axb3 {[%clk 0:00:29]}  Rd8 {[%clk 0:00:30]} 27. d7 {[%clk 0:00:19]}  Qe7 {[%clk 0:00:25]} 28. Qd3 {[%clk 0:00:18]}  Bc6 {[%clk 0:00:25]} 29. Qc2 {[%clk 0:00:11]}  Rxd7 {[%clk 0:00:24]} 30. Rc1 {[%clk 0:00:09]}  Be4 {[%clk 0:00:23]} 31. Qc8+ {[%clk 0:00:09]}  Rd8 {[%clk 0:00:19]} 32. Qxa6 {[%clk 0:00:09]}  Bd3 {[%clk 0:00:16]} 33. Ng3 {[%clk 0:00:08]}  Qe6 {[%clk 0:00:11]} 34. Qxe6 {[%clk 0:00:06]}  fxe6 {[%clk 0:00:12]} 35. Rc6 {[%clk 0:00:06]}  Kf7 {[%clk 0:00:11]} 36. Rc7+ {[%clk 0:00:06]}  Kg8 {[%clk 0:00:07]} 37. b4 {[%clk 0:00:06]}  Bf8 {[%clk 0:00:06]} 38. Bc5 {[%clk 0:00:03]}  Bxc5 {[%clk 0:00:05]} 39. Rxc5 {[%clk 0:00:02]}  Rd4 {[%clk 0:00:06]} 0-1


[Site "https://www.chess.com"]

[Event "Titled Tuesday Blitz June 28 Early 2022"]
[White "Melikhov, Evgeny V."]
[Black "Zubritskiy, Artyom"]
[WhiteFideId "4122046"]
[BlackFideId "4181247"]
[WhiteElo "1904"]
[BlackElo "2478"]
[Result "0-1"]
[Round "05"]
[TimeControl "180+1"]
[Date "2022.06.28"]
[WhiteClock "0:00:09"]
[BlackClock "0:00:51"]

1. d4 {[%clk 0:03:00]}  f5 {[%clk 0:02:59]} 2. e4 {[%clk 0:03:00]}  fxe4 {[%clk 0:03:00]} 3. Nc3 {[%clk 0:03:00]}  Nf6 {[%clk 0:03:00]} 4. Bg5 {[%clk 0:03:00]}  Nc6 {[%clk 0:03:01]} 5. d5 {[%clk 0:02:54]}  Ne5 {[%clk 0:03:01]} 6. Qe2 {[%clk 0:02:40]}  c6 {[%clk 0:02:56]} 7. Bxf6 {[%clk 0:02:29]}  exf6 {[%clk 0:02:50]} 8. Qxe4 {[%clk 0:02:22]}  Qb6 {[%clk 0:02:09]} 9. O-O-O {[%clk 0:02:17]}  Kd8 {[%clk 0:02:06]} 10. Nf3 {[%clk 0:02:09]}  Nxf3 {[%clk 0:02:01]} 11. Qxf3 {[%clk 0:02:09]}  Kc7 {[%clk 0:01:49]} 12. Bd3 {[%clk 0:01:44]}  Bd6 {[%clk 0:01:46]} 13. Rhe1 {[%clk 0:01:41]}  Be5 {[%clk 0:01:41]} 14. Rxe5 {[%clk 0:01:01]}  fxe5 {[%clk 0:01:41]} 15. Qf7 {[%clk 0:01:00]}  Qb4 {[%clk 0:01:14]} 16. Be4 {[%clk 0:00:53]}  Qf8 {[%clk 0:01:12]} 17. Qh5 {[%clk 0:00:41]}  d6 {[%clk 0:01:08]} 18. Qe2 {[%clk 0:00:25]}  Bd7 {[%clk 0:01:07]} 19. Qc4 {[%clk 0:00:20]}  c5 {[%clk 0:01:03]} 20. f3 {[%clk 0:00:19]}  a6 {[%clk 0:01:02]} 21. a4 {[%clk 0:00:19]}  b6 {[%clk 0:00:59]} 22. g4 {[%clk 0:00:16]}  Qe8 {[%clk 0:00:56]} 23. h4 {[%clk 0:00:14]}  b5 {[%clk 0:00:56]} 24. Qf1 {[%clk 0:00:13]}  b4 {[%clk 0:00:56]} 25. Ne2 {[%clk 0:00:13]}  Bxa4 {[%clk 0:00:55]} 26. Ng3 {[%clk 0:00:12]}  Bb5 {[%clk 0:00:54]} 27. Qg2 {[%clk 0:00:12]}  g6 {[%clk 0:00:52]} 28. h5 {[%clk 0:00:11]}  Qf7 {[%clk 0:00:51]} 29. hxg6 {[%clk 0:00:10]}  hxg6 {[%clk 0:00:52]} 30. Qd2 {[%clk 0:00:10]}  Qf4 {[%clk 0:00:50]} 31. Qxf4 {[%clk 0:00:09]}  exf4 {[%clk 0:00:51]} 32. Bxg6 {[%clk 0:00:09]}  fxg3 {[%clk 0:00:51]} 0-1


[Site "https://www.chess.com"]

[Event "Titled Tuesday Blitz June 28 Early 2022"]
[White "Mogirzan, Matei-Valeriu"]
[Black "Karavade, Eesha"]
[WhiteFideId "1257455"]
[BlackFideId "5012600"]
[WhiteElo "1733"]
[BlackElo "2258"]
[Result "0-1"]
[Round "05"]
[TimeControl "180+1"]
[Date "2022.06.28"]
[WhiteClock "0:00:02"]
[BlackClock "0:00:18"]

1. e4 {[%clk 0:03:00]}  c5 {[%clk 0:02:59]} 2. Nf3 {[%clk 0:02:54]}  d6 {[%clk 0:02:59]} 3. d4 {[%clk 0:02:54]}  cxd4 {[%clk 0:02:59]} 4. Nxd4 {[%clk 0:02:55]}  Nf6 {[%clk 0:02:59]} 5. Nc3 {[%clk 0:02:56]}  a6 {[%clk 0:03:00]} 6. Bc4 {[%clk 0:02:56]}  e6 {[%clk 0:02:59]} 7. Be3 {[%clk 0:02:54]}  Be7 {[%clk 0:02:56]} 8. Qe2 {[%clk 0:02:45]}  b5 {[%clk 0:02:49]} 9. Bb3 {[%clk 0:02:43]}  Qc7 {[%clk 0:02:42]} 10. a3 {[%clk 0:02:40]}  Nc6 {[%clk 0:02:32]} 11. g4 {[%clk 0:02:25]}  Nxd4 {[%clk 0:02:29]} 12. Bxd4 {[%clk 0:02:25]}  e5 {[%clk 0:02:25]} 13. Be3 {[%clk 0:02:22]}  Bxg4 {[%clk 0:02:14]} 14. f3 {[%clk 0:02:15]}  Be6 {[%clk 0:02:13]} 15. Bg5 {[%clk 0:01:51]}  Rc8 {[%clk 0:02:03]} 16. O-O-O {[%clk 0:01:05]}  O-O {[%clk 0:01:54]} 17. Bxf6 {[%clk 0:00:54]}  Bxf6 {[%clk 0:01:54]} 18. Nd5 {[%clk 0:00:55]}  Bxd5 {[%clk 0:01:47]} 19. Bxd5 {[%clk 0:00:52]}  a5 {[%clk 0:01:46]} 20. Qd3 {[%clk 0:00:31]}  Qc5 {[%clk 0:01:25]} 21. Rhg1 {[%clk 0:00:23]}  h6 {[%clk 0:01:19]} 22. Rg4 {[%clk 0:00:10]}  Kh8 {[%clk 0:01:18]} 23. Rdg1 {[%clk 0:00:08]}  Rb8 {[%clk 0:01:05]} 24. f4 {[%clk 0:00:04]}  b4 {[%clk 0:01:02]} 25. a4 {[%clk 0:00:04]}  b3 {[%clk 0:00:58]} 26. c3 {[%clk 0:00:02]}  exf4 {[%clk 0:00:57]} 27. e5 {[%clk 0:00:02]}  Bxe5 {[%clk 0:00:46]} 28. Qe4 {[%clk 0:00:02]}  Qe3+ {[%clk 0:00:44]} 29. Qxe3 {[%clk 0:00:02]}  fxe3 {[%clk 0:00:45]} 30. Re4 {[%clk 0:00:02]}  f5 {[%clk 0:00:43]} 31. Rxe3 {[%clk 0:00:03]}  f4 {[%clk 0:00:43]} 32. Rf3 {[%clk 0:00:03]}  g5 {[%clk 0:00:43]} 33. h4 {[%clk 0:00:03]}  Bf6 {[%clk 0:00:40]} 34. hxg5 {[%clk 0:00:03]}  hxg5 {[%clk 0:00:40]} 35. Rg4 {[%clk 0:00:02]}  Rfe8 {[%clk 0:00:37]} 36. c4 {[%clk 0:00:01]}  Re1+ {[%clk 0:00:32]} 37. Kd2 {[%clk 0:00:01]}  Rbe8 {[%clk 0:00:32]} 38. Rh3+ {[%clk 0:00:01]}  Kg7 {[%clk 0:00:32]} 39. Rh2 {[%clk 0:00:02]}  R8e3 {[%clk 0:00:27]} 40. Rhg2 {[%clk 0:00:01]}  Rb1 {[%clk 0:00:26]} 41. Rxf4 {[%clk 0:00:01]}  Ree1 {[%clk 0:00:23]} 42. Rxf6 {[%clk 0:00:01]}  Kxf6 {[%clk 0:00:22]} 43. Kc3 {[%clk 0:00:02]}  Re3+ {[%clk 0:00:22]} 44. Kd4 {[%clk 0:00:02]}  Rh3 {[%clk 0:00:20]} 45. Rf2+ {[%clk 0:00:02]}  Kg7 {[%clk 0:00:19]} 46. Rg2 {[%clk 0:00:02]}  Rd1+ {[%clk 0:00:19]} 47. Ke4 {[%clk 0:00:01]}  Kh6 {[%clk 0:00:18]} 48. Be6 {[%clk 0:00:01]}  Rh4+ {[%clk 0:00:19]} 49. Kf5 {[%clk 0:00:02]}  Rf1+ {[%clk 0:00:18]} 0-1


[Site "https://www.chess.com"]

[Event "Titled Tuesday Blitz June 28 Early 2022"]
[White "Mrudul Dehankar"]
[Black "Buscar, Michael"]
[WhiteFideId "25096990"]
[BlackFideId "2603616"]
[WhiteElo "1766"]
[BlackElo "2010"]
[Result "1-0"]
[Round "05"]
[TimeControl "180+1"]
[Date "2022.06.28"]
[WhiteClock "0:00:04"]
[BlackClock "0:00:09"]

1. e4 {[%clk 0:03:00]}  c5 {[%clk 0:02:58]} 2. Nf3 {[%clk 0:02:59]}  Nc6 {[%clk 0:02:57]} 3. d4 {[%clk 0:02:59]}  cxd4 {[%clk 0:02:58]} 4. Nxd4 {[%clk 0:02:59]}  Nf6 {[%clk 0:02:58]} 5. Nc3 {[%clk 0:02:58]}  e5 {[%clk 0:02:58]} 6. Ndb5 {[%clk 0:02:58]}  h6 {[%clk 0:02:59]} 7. Nd6+ {[%clk 0:02:57]}  Bxd6 {[%clk 0:02:59]} 8. Qxd6 {[%clk 0:02:58]}  Qe7 {[%clk 0:02:59]} 9. Qd1 {[%clk 0:02:58]}  O-O {[%clk 0:02:59]} 10. Be3 {[%clk 0:02:54]}  Rd8 {[%clk 0:02:59]} 11. Be2 {[%clk 0:02:36]}  d5 {[%clk 0:02:59]} 12. Nxd5 {[%clk 0:02:29]}  Nxd5 {[%clk 0:02:47]} 13. exd5 {[%clk 0:02:27]}  Qb4+ {[%clk 0:02:47]} 14. Bd2 {[%clk 0:02:25]}  Qxb2 {[%clk 0:02:37]} 15. dxc6 {[%clk 0:02:24]}  Rxd2 {[%clk 0:02:35]} 16. Kxd2 {[%clk 0:02:14]}  Bf5 {[%clk 0:02:27]} 17. Ke1 {[%clk 0:01:04]}  Qc3+ {[%clk 0:02:05]} 18. Kf1 {[%clk 0:01:01]}  Qxc6 {[%clk 0:02:05]} 19. Bd3 {[%clk 0:00:17]}  Rd8 {[%clk 0:01:58]} 20. Qf3 {[%clk 0:00:10]}  Qc3 {[%clk 0:01:51]} 21. Re1 {[%clk 0:00:07]}  Be6 {[%clk 0:01:40]} 22. Qe4 {[%clk 0:00:06]}  f6 {[%clk 0:01:15]} 23. Qh7+ {[%clk 0:00:05]}  Kf8 {[%clk 0:01:15]} 24. h3 {[%clk 0:00:01]}  Bg8 {[%clk 0:01:06]} 25. Qe4 {[%clk 0:00:02]}  Bd5 {[%clk 0:01:04]} 26. Qe3 {[%clk 0:00:01]}  Bxa2 {[%clk 0:00:52]} 27. Kg1 {[%clk 0:00:02]}  a5 {[%clk 0:00:45]} 28. Kh2 {[%clk 0:00:02]}  Bd5 {[%clk 0:00:40]} 29. Be4 {[%clk 0:00:02]}  Qc6 {[%clk 0:00:30]} 30. Qa3+ {[%clk 0:00:02]}  Kg8 {[%clk 0:00:26]} 31. Bxd5+ {[%clk 0:00:02]}  Rxd5 {[%clk 0:00:26]} 32. Qb3 {[%clk 0:00:03]}  Kh7 {[%clk 0:00:25]} 33. Re3 {[%clk 0:00:03]}  a4 {[%clk 0:00:22]} 34. Qc3 {[%clk 0:00:03]}  Qd6 {[%clk 0:00:20]} 35. Qc4 {[%clk 0:00:03]}  b5 {[%clk 0:00:18]} 36. Qe4+ {[%clk 0:00:02]}  Kh8 {[%clk 0:00:19]} 37. Rd3 {[%clk 0:00:03]}  Rd4 {[%clk 0:00:18]} 38. Rxd4 {[%clk 0:00:03]}  exd4+ {[%clk 0:00:18]} 39. g3 {[%clk 0:00:01]}  a3 {[%clk 0:00:17]} 40. Kg2 {[%clk 0:00:02]}  a2 {[%clk 0:00:17]} 41. Rd1 {[%clk 0:00:02]}  Qc5 {[%clk 0:00:12]} 42. Qe8+ {[%clk 0:00:03]}  Kh7 {[%clk 0:00:12]} 43. Qe4+ {[%clk 0:00:03]}  f5 {[%clk 0:00:12]} 44. Qd3 {[%clk 0:00:04]}  Kg6 {[%clk 0:00:11]} 45. Kg1 {[%clk 0:00:04]}  Qd5 {[%clk 0:00:10]} 46. Qb3 {[%clk 0:00:05]}  Qf3 {[%clk 0:00:09]} 47. Qxf3 {[%clk 0:00:04]} 1-0


[Site "https://www.chess.com"]

[Event "Titled Tuesday Blitz June 28 Early 2022"]
[White "Nguyen, Quoc Hy"]
[Black "Silva Lucena, Cristian"]
[WhiteFideId "12410853"]
[BlackFideId "2232588"]
[WhiteElo "1938"]
[BlackElo "2223"]
[Result "1-0"]
[Round "05"]
[TimeControl "180+1"]
[Date "2022.06.28"]
[WhiteClock "0:01:57"]
[BlackClock "0:01:15"]

1. d4 {[%clk 0:03:00]}  Nf6 {[%clk 0:02:50]} 2. c4 {[%clk 0:02:58]}  g6 {[%clk 0:02:50]} 3. Nc3 {[%clk 0:02:56]}  Bg7 {[%clk 0:02:50]} 4. e4 {[%clk 0:02:57]}  d6 {[%clk 0:02:50]} 5. Nge2 {[%clk 0:02:56]}  O-O {[%clk 0:02:49]} 6. Ng3 {[%clk 0:02:55]}  h5 {[%clk 0:02:49]} 7. Bg5 {[%clk 0:02:53]}  Qe8 {[%clk 0:02:48]} 8. Qd2 {[%clk 0:02:50]}  e5 {[%clk 0:02:47]} 9. d5 {[%clk 0:02:49]}  a5 {[%clk 0:02:46]} 10. Bd3 {[%clk 0:02:43]}  Na6 {[%clk 0:02:46]} 11. Bh6 {[%clk 0:02:42]}  Nc5 {[%clk 0:02:31]} 12. Bc2 {[%clk 0:02:41]}  Bd7 {[%clk 0:02:23]} 13. O-O-O {[%clk 0:02:27]}  b5 {[%clk 0:02:19]} 14. cxb5 {[%clk 0:02:25]}  Bxb5 {[%clk 0:02:20]} 15. Bxg7 {[%clk 0:02:24]}  Kxg7 {[%clk 0:02:19]} 16. f4 {[%clk 0:02:25]}  exf4 {[%clk 0:02:05]} 17. Qxf4 {[%clk 0:02:24]}  Ng4 {[%clk 0:02:05]} 18. Nf5+ {[%clk 0:02:16]}  gxf5 {[%clk 0:01:51]} 19. Qg5+ {[%clk 0:02:14]}  Kh7 {[%clk 0:01:51]} 20. Qxf5+ {[%clk 0:02:10]}  Kh6 {[%clk 0:01:45]} 21. e5 {[%clk 0:02:09]}  Qxe5 {[%clk 0:01:34]} 22. Qh7+ {[%clk 0:02:07]}  Kg5 {[%clk 0:01:34]} 23. h4+ {[%clk 0:02:06]}  Kf4 {[%clk 0:01:34]} 24. Nxb5 {[%clk 0:02:03]}  Qe3+ {[%clk 0:01:26]} 25. Kb1 {[%clk 0:02:02]}  f5 {[%clk 0:01:19]} 26. Rhf1+ {[%clk 0:01:58]}  Kg3 {[%clk 0:01:15]} 27. Rf3+ {[%clk 0:01:57]} 1-0


[Site "https://www.chess.com"]

[Event "Titled Tuesday Blitz June 28 Early 2022"]
[White "Odegov, Artem"]
[Black "Balint, Vilmos"]
[WhiteFideId "34183644"]
[BlackFideId "718050"]
[WhiteElo "2286"]
[BlackElo "2059"]
[Result "1-0"]
[Round "05"]
[TimeControl "180+1"]
[Date "2022.06.28"]
[WhiteClock "0:01:32"]
[BlackClock "0:02:36"]

1. d4 {[%clk 0:03:00]}  f5 {[%clk 0:02:59]} 2. h3 {[%clk 0:02:59]}  Nf6 {[%clk 0:03:00]} 3. g4 {[%clk 0:03:00]}  fxg4 {[%clk 0:02:59]} 4. hxg4 {[%clk 0:03:01]}  Nxg4 {[%clk 0:02:58]} 5. Qd3 {[%clk 0:03:02]}  Nh6 {[%clk 0:02:45]} 6. Nf3 {[%clk 0:02:08]}  d6 {[%clk 0:02:40]} 7. Bxh6 {[%clk 0:01:33]}  gxh6 {[%clk 0:02:39]} 8. Qb5+ {[%clk 0:01:34]}  c6 {[%clk 0:02:36]} 9. Qh5+ {[%clk 0:01:34]}  Kd7 {[%clk 0:02:37]} 10. Nc3 {[%clk 0:01:33]}  Qe8 {[%clk 0:02:36]} 11. Bh3+ {[%clk 0:01:31]}  Kd8 {[%clk 0:02:36]} 12. Qxe8+ {[%clk 0:01:31]}  Kxe8 {[%clk 0:02:36]} 13. Bxc8 {[%clk 0:01:32]} 1-0


[Site "https://www.chess.com"]

[Event "Titled Tuesday Blitz June 28 Early 2022"]
[White "Omariev, Maksim"]
[Black "Ortega Ruiz, Jose Miguel"]
[WhiteFideId "4193423"]
[BlackFideId "2209713"]
[WhiteElo "2474"]
[BlackElo "2292"]
[Result "1-0"]
[Round "05"]
[TimeControl "180+1"]
[Date "2022.06.28"]
[WhiteClock "0:00:06"]
[BlackClock "0:00:35"]

1. g4 {[%clk 0:03:00]}  c6 {[%clk 0:02:26]} 2. Bg2 {[%clk 0:02:58]}  d5 {[%clk 0:02:25]} 3. h3 {[%clk 0:02:58]}  h5 {[%clk 0:02:25]} 4. g5 {[%clk 0:02:54]}  e5 {[%clk 0:02:26]} 5. d4 {[%clk 0:02:54]}  exd4 {[%clk 0:02:19]} 6. Qxd4 {[%clk 0:02:55]}  Ne7 {[%clk 0:02:20]} 7. e4 {[%clk 0:02:41]}  dxe4 {[%clk 0:02:12]} 8. Qxd8+ {[%clk 0:02:40]}  Kxd8 {[%clk 0:02:13]} 9. Nc3 {[%clk 0:02:39]}  Bf5 {[%clk 0:02:12]} 10. Bf4 {[%clk 0:02:23]}  Ng6 {[%clk 0:02:12]} 11. O-O-O+ {[%clk 0:02:23]}  Kc8 {[%clk 0:02:11]} 12. Be3 {[%clk 0:02:14]}  Bb4 {[%clk 0:02:01]} 13. Nxe4 {[%clk 0:02:12]}  Nh4 {[%clk 0:02:02]} 14. Ng3 {[%clk 0:01:57]}  Bg6 {[%clk 0:01:55]} 15. Be4 {[%clk 0:01:43]}  Nd7 {[%clk 0:01:55]} 16. N1e2 {[%clk 0:01:37]}  Re8 {[%clk 0:01:54]} 17. Bxg6 {[%clk 0:01:36]}  Nxg6 {[%clk 0:01:54]} 18. Nxh5 {[%clk 0:01:35]}  Bc5 {[%clk 0:01:44]} 19. Bxc5 {[%clk 0:01:24]}  Nxc5 {[%clk 0:01:39]} 20. Neg3 {[%clk 0:01:24]}  Ne6 {[%clk 0:01:38]} 21. h4 {[%clk 0:01:14]}  Kc7 {[%clk 0:01:37]} 22. Nf5 {[%clk 0:01:13]}  Rh8 {[%clk 0:01:33]} 23. Nfxg7 {[%clk 0:01:01]}  Nxg7 {[%clk 0:01:34]} 24. Nxg7 {[%clk 0:01:02]}  Nxh4 {[%clk 0:01:30]} 25. Rd4 {[%clk 0:00:49]}  Nf3 {[%clk 0:01:29]} 26. Rdd1 {[%clk 0:00:27]}  Rhg8 {[%clk 0:01:19]} 27. Nh5 {[%clk 0:00:22]}  Rxg5 {[%clk 0:01:18]} 28. Nf6 {[%clk 0:00:23]}  Rf5 {[%clk 0:01:16]} 29. Rd7+ {[%clk 0:00:21]}  Kb6 {[%clk 0:01:15]} 30. Ne4 {[%clk 0:00:21]}  Re8 {[%clk 0:01:12]} 31. Nd6 {[%clk 0:00:18]}  Rd5 {[%clk 0:01:05]} 32. c4 {[%clk 0:00:16]}  Rxd6 {[%clk 0:00:56]} 33. Rxd6 {[%clk 0:00:15]}  Re7 {[%clk 0:00:55]} 34. b4 {[%clk 0:00:15]}  a5 {[%clk 0:00:54]} 35. a3 {[%clk 0:00:14]}  Ne5 {[%clk 0:00:53]} 36. Rh4 {[%clk 0:00:07]}  f5 {[%clk 0:00:48]} 37. Kc2 {[%clk 0:00:07]}  Rf7 {[%clk 0:00:48]} 38. Rhd4 {[%clk 0:00:06]}  axb4 {[%clk 0:00:48]} 39. axb4 {[%clk 0:00:06]}  Ng4 {[%clk 0:00:47]} 40. f3 {[%clk 0:00:06]}  Ne3+ {[%clk 0:00:48]} 41. Kd3 {[%clk 0:00:06]}  f4 {[%clk 0:00:48]} 42. Re4 {[%clk 0:00:05]}  Kc7 {[%clk 0:00:44]} 43. Rdd4 {[%clk 0:00:05]}  Ng2 {[%clk 0:00:44]} 44. Re2 {[%clk 0:00:05]}  Nh4 {[%clk 0:00:44]} 45. Rf2 {[%clk 0:00:04]}  Ng6 {[%clk 0:00:42]} 46. Rg2 {[%clk 0:00:03]}  Ne5+ {[%clk 0:00:41]} 47. Ke4 {[%clk 0:00:04]}  Nd7 {[%clk 0:00:41]} 48. Rg4 {[%clk 0:00:04]}  Nf6+ {[%clk 0:00:41]} 49. Kxf4 {[%clk 0:00:04]}  Nxg4+ {[%clk 0:00:42]} 50. Kxg4 {[%clk 0:00:05]}  b6 {[%clk 0:00:43]} 51. f4 {[%clk 0:00:04]}  Rg7+ {[%clk 0:00:43]} 52. Kf5 {[%clk 0:00:04]}  Rg1 {[%clk 0:00:41]} 53. Kf6 {[%clk 0:00:05]}  c5 {[%clk 0:00:39]} 54. bxc5 {[%clk 0:00:04]}  bxc5 {[%clk 0:00:40]} 55. Rd5 {[%clk 0:00:05]}  Rg4 {[%clk 0:00:39]} 56. Rxc5+ {[%clk 0:00:04]}  Kd6 {[%clk 0:00:37]} 57. Rd5+ {[%clk 0:00:04]}  Kc6 {[%clk 0:00:38]} 58. Rf5 {[%clk 0:00:04]}  Kd6 {[%clk 0:00:37]} 59. Kf7 {[%clk 0:00:04]}  Kd7 {[%clk 0:00:38]} 60. c5 {[%clk 0:00:05]}  Rg1 {[%clk 0:00:38]} 61. Rf6 {[%clk 0:00:05]}  Rb1 {[%clk 0:00:37]} 62. c6+ {[%clk 0:00:06]}  Kd8 {[%clk 0:00:37]} 63. f5 {[%clk 0:00:07]}  Rb6 {[%clk 0:00:35]} 64. Re6 {[%clk 0:00:06]}  Rb8 {[%clk 0:00:34]} 65. Re8+ {[%clk 0:00:05]}  Kc7 {[%clk 0:00:34]} 66. Rxb8 {[%clk 0:00:06]}  Kd6 {[%clk 0:00:35]} 67. c7 {[%clk 0:00:06]} 1-0


[Site "https://www.chess.com"]

[Event "Titled Tuesday Blitz June 28 Early 2022"]
[White "Onslow, Alfie"]
[Black "Hartikainen, Jarmo"]
[WhiteFideId "436976"]
[BlackFideId "503134"]
[WhiteElo "1885"]
[BlackElo "2164"]
[Result "1-0"]
[Round "05"]
[TimeControl "180+1"]
[Date "2022.06.28"]
[WhiteClock "0:00:45"]
[BlackClock "0:00:02"]

1. e4 {[%clk 0:02:59]}  c5 {[%clk 0:02:59]} 2. Nc3 {[%clk 0:02:59]}  Nc6 {[%clk 0:02:59]} 3. Bb5 {[%clk 0:02:59]}  g6 {[%clk 0:02:59]} 4. Bxc6 {[%clk 0:03:00]}  dxc6 {[%clk 0:02:59]} 5. f4 {[%clk 0:03:00]}  Bg7 {[%clk 0:02:56]} 6. Nf3 {[%clk 0:03:01]}  Bg4 {[%clk 0:02:54]} 7. O-O {[%clk 0:03:02]}  e5 {[%clk 0:02:25]} 8. d3 {[%clk 0:03:02]}  Qc7 {[%clk 0:02:14]} 9. h3 {[%clk 0:03:01]}  Bxf3 {[%clk 0:02:09]} 10. Qxf3 {[%clk 0:03:02]}  f6 {[%clk 0:01:56]} 11. fxe5 {[%clk 0:03:02]}  fxe5 {[%clk 0:01:56]} 12. Bg5 {[%clk 0:02:55]}  h6 {[%clk 0:01:56]} 13. Be3 {[%clk 0:02:54]}  O-O-O {[%clk 0:01:53]} 14. Bxc5 {[%clk 0:02:50]}  Nf6 {[%clk 0:01:43]} 15. a4 {[%clk 0:02:47]}  g5 {[%clk 0:01:30]} 16. a5 {[%clk 0:02:45]}  Rhf8 {[%clk 0:01:05]} 17. Bxf8 {[%clk 0:02:36]}  Rxf8 {[%clk 0:01:05]} 18. Qf5+ {[%clk 0:02:31]}  Kb8 {[%clk 0:01:04]} 19. Qg6 {[%clk 0:02:32]}  Qe7 {[%clk 0:00:49]} 20. Kh1 {[%clk 0:02:29]}  Rg8 {[%clk 0:00:42]} 21. Qf5 {[%clk 0:02:12]}  Nh5 {[%clk 0:00:25]} 22. Kh2 {[%clk 0:02:00]}  Nf4 {[%clk 0:00:22]} 23. Qg4 {[%clk 0:01:32]}  h5 {[%clk 0:00:20]} 24. Qd1 {[%clk 0:01:32]}  g4 {[%clk 0:00:20]} 25. Ne2 {[%clk 0:01:32]}  gxh3 {[%clk 0:00:12]} 26. Nxf4 {[%clk 0:01:32]}  exf4 {[%clk 0:00:12]} 27. gxh3 {[%clk 0:01:33]}  Be5 {[%clk 0:00:10]} 28. Qxh5 {[%clk 0:01:17]}  f3+ {[%clk 0:00:08]} 29. Kh1 {[%clk 0:01:18]}  Qe6 {[%clk 0:00:07]} 30. Rxf3 {[%clk 0:01:05]}  Rh8 {[%clk 0:00:06]} 31. Qf5 {[%clk 0:01:05]}  Qe7 {[%clk 0:00:06]} 32. c3 {[%clk 0:00:59]}  a6 {[%clk 0:00:06]} 33. d4 {[%clk 0:00:59]}  Bg7 {[%clk 0:00:05]} 34. Raf1 {[%clk 0:00:52]}  Ka7 {[%clk 0:00:04]} 35. Qc5+ {[%clk 0:00:50]}  Qxc5 {[%clk 0:00:03]} 36. dxc5 {[%clk 0:00:51]}  Rh4 {[%clk 0:00:02]} 37. Rf7 {[%clk 0:00:49]}  Bh6 {[%clk 0:00:02]} 38. Rh7 {[%clk 0:00:48]}  Rxh3+ {[%clk 0:00:02]} 39. Kg2 {[%clk 0:00:48]}  Rh5 {[%clk 0:00:02]} 40. Rff7 {[%clk 0:00:49]}  Rg5+ {[%clk 0:00:02]} 41. Kf3 {[%clk 0:00:45]} 1-0


[Site "https://www.chess.com"]